fUSD/lending_fUSD_20260324
["ID","MTS","AMOUNT","RATE_DAILY","PERIOD"]
[408838493,1774338710810,-500.0,0.00041917,120]
[408838494,1774338710819,-500.0,0.00041917,120]
[408838495,1774338710828,-6072.1,0.00041917,120]
[408838496,1774338710836,-826.7,0.00041917,120]
[408838497,1774338710845,-1989.66,0.00041917,30]
[408838498,1774338710855,-500.0,0.00041917,120]
[408838499,1774338710865,-552.86,0.00041917,120]
[408838500,1774338710873,-926.79,0.00041917,120]
[408838501,1774338710884,-500.0,0.00041917,120]
[408838502,1774338710895,-500.0,0.00041917,120]
[408838503,1774338710904,-2329.55,0.00041917,120]
[408838504,1774338710913,-500.0,0.00041917,120]
[408838505,1774338710923,-500.0,0.00041917,120]
[408838506,1774338710932,-500.0,0.00041917,120]
[408838507,1774338710943,-500.0,0.00041917,120]
[408838508,1774338710958,-847.68,0.00041917,120]
[408838509,1774338710967,-1646.81,0.00041917,120]
[408838510,1774338710976,-1090.68,0.00041917,120]
[408838511,1774338710986,-500.0,0.00041917,120]
[408838512,1774338711000,-1885.93,0.00041917,120]
[408838513,1774338711010,-741.6,0.00041917,120]
[408838514,1774338711019,-500.0,0.00041917,120]
[408838515,1774338711028,-500.0,0.00041917,120]
[408838516,1774338711042,-727.16,0.00041917,120]
[408838517,1774338711053,-500.0,0.00041917,120]
[408838518,1774338711062,-712.06,0.00041917,120]
[408838519,1774338711071,-5833.33,0.00041917,120]
[408838520,1774338711085,-500.0,0.00041917,120]
[408838521,1774338711095,-500.0,0.00041917,120]
[408838522,1774338711105,-2107.35,0.00041917,120]
[408838523,1774338711116,-500.0,0.00041917,120]
[408838524,1774338711125,-500.0,0.00041917,120]
[408838525,1774338711135,-500.0,0.00041917,120]
[408838526,1774338711146,-500.0,0.00041917,120]
[408838527,1774338711157,-500.0,0.00041917,120]
[408838528,1774338711167,-617.58,0.00041917,120]
[408838529,1774338711179,-500.0,0.00041917,120]
[408838530,1774338711188,-500.0,0.00041917,120]
[408838531,1774338711198,-2133.23,0.00041917,120]
[408838532,1774338711207,-500.0,0.00041917,120]
[408838533,1774338711217,-1039.39,0.00041917,120]
[408838534,1774338711226,-332.94442325,0.00041917,120]
[408838535,1774338711235,-2468.56,0.00041917,120]
[408838536,1774338711244,-1366.12,0.00041917,120]
[408838537,1774338711254,-500.0,0.00041917,120]
[408838538,1774338711266,-500.0,0.00041917,120]
[408838539,1774338711275,-1016.32,0.00041917,120]
[408838540,1774338711284,-500.0,0.00041917,120]
[408838541,1774338711295,-784.59,0.00041917,120]
[408838542,1774338711306,-1478.69,0.00041917,120]
[408838543,1774338711316,-1107.99,0.00041917,120]
[408838544,1774338711327,-500.0,0.00041917,120]
[408838545,1774338711338,-1259.9,0.00041917,120]
[408838546,1774338711349,-1114.05,0.00041917,120]
[408838547,1774338711359,-1519.93,0.00041917,120]
[408838548,1774338711374,-646.06,0.00041917,120]
[408838549,1774338711385,-500.0,0.00041917,120]
[408838550,1774338711529,-1266.58,0.00041917,120]
[408838551,1774338711540,-426.73787642,0.00041917,120]
[408838552,1774338711551,-500.0,0.00041917,120]
[408838553,1774338711563,-500.0,0.00041917,120]
[408838554,1774338711573,-500.0,0.00041917,120]
[408838555,1774338711583,-500.0,0.00041917,120]
[408838556,1774338711592,-1009.25,0.00041917,120]
[408838557,1774338711602,-500.0,0.00041917,120]
[408838558,1774338711615,-707.37,0.00041917,120]
[408838559,1774338711626,-1156.03,0.00041917,14]
[408838560,1774338711636,-500.0,0.00041917,120]
[408838561,1774338711648,-999.55,0.00041917,120]
[408838562,1774338711659,-970.63,0.00041917,120]
[408838563,1774338711669,-500.0,0.00041917,120]
[408838564,1774338711680,-650.62,0.00041917,30]
[408838565,1774338711691,-725.53,0.00041917,120]
[408838566,1774338711702,-500.0,0.00041917,120]
[408838567,1774338711712,-1014.92,0.00041917,120]
[408838568,1774338711723,-500.0,0.00041917,120]
[408838569,1774338711732,-2689.33,0.00041917,120]
[408838570,1774338711743,-500.0,0.00041917,120]
[408838571,1774338711752,-500.0,0.00041917,120]
[408838572,1774338711764,-500.0,0.00041917,120]
[408838573,1774338711775,-500.0,0.00041917,120]
[408838574,1774338711785,-1544.85,0.00041917,120]
[408838575,1774338711795,-500.0,0.00041917,120]
[408838576,1774338711806,-500.0,0.00041917,120]
[408838577,1774338711815,-500.0,0.00041917,120]
[408838578,1774338711826,-1269.14,0.00041917,120]
[408838579,1774338711838,-500.0,0.00041917,120]
[408838580,1774338711848,-500.0,0.00041917,120]
[408838581,1774338711859,-665.15,0.00041917,120]
[408838582,1774338711870,-500.0,0.00041917,120]
[408838583,1774338711880,-680.42,0.00041917,120]
[408838584,1774338711889,-500.0,0.00041917,120]
[408838585,1774338711899,-500.0,0.00041917,120]
[408838586,1774338711908,-500.0,0.00041917,120]
[408838587,1774338711920,-500.0,0.00041917,120]
[408838588,1774338711932,-500.0,0.00041917,120]
[408838589,1774338711942,-500.0,0.00041917,120]
[408838590,1774338711953,-500.0,0.00041917,120]
[408838591,1774338711966,-1769.26,0.00041917,120]
[408838592,1774338711976,-500.0,0.00041917,120]
[408838593,1774338711987,-512.42,0.00041917,120]
[408838594,1774338711998,-500.0,0.00041917,120]
[408838595,1774338712009,-500.0,0.00041917,120]
[408838596,1774338712018,-500.0,0.00041917,120]
[408838597,1774338712030,-500.0,0.00041917,120]
[408838598,1774338712039,-500.0,0.00041917,120]
[408838599,1774338712050,-500.0,0.00041917,120]
[408838600,1774338712060,-500.0,0.00041917,120]
[408838601,1774338712071,-500.0,0.00041917,120]
[408838602,1774338712082,-500.0,0.00041917,120]
[408838603,1774338712092,-500.0,0.00041917,120]
[408838604,1774338712102,-1705.77,0.00041917,120]
[408838605,1774338712114,-500.0,0.00041917,120]
[408838606,1774338712124,-500.0,0.00041917,120]
[408838607,1774338712133,-978.43,0.00041917,120]
[408838608,1774338712144,-500.0,0.00041917,120]
[408838609,1774338712153,-500.0,0.00041917,120]
[408838610,1774338712163,-500.0,0.00041917,120]
[408838611,1774338712173,-500.0,0.00041917,120]
[408838612,1774338712183,-500.0,0.00041917,120]
[408838613,1774338712192,-500.0,0.00041917,120]
[408838614,1774338712202,-500.0,0.00041917,120]
[408838615,1774338712214,-500.0,0.00041917,120]
[408838616,1774338712224,-582.16960321,0.00041917,120]
[408838617,1774338712233,-500.0,0.00041917,120]
[408838618,1774338712245,-406.42080547,0.00041917,120]
[408838619,1774338712254,-500.0,0.00041917,120]
[408838620,1774338712265,-500.0,0.00041917,120]
[408838621,1774338712276,-500.0,0.00041917,120]
[408838622,1774338712287,-1215.44,0.00041917,120]
[408838623,1774338712297,-500.0,0.00041917,120]
[408838624,1774338712306,-500.0,0.00041917,120]
[408838625,1774338712316,-500.0,0.00041917,120]
[408838626,1774338712326,-500.0,0.00041917,120]
[408838627,1774338712335,-1046.27,0.00041917,120]
[408838628,1774338712344,-500.0,0.00041917,120]
[408838629,1774338712354,-500.0,0.00041917,120]
[408838630,1774338712365,-1613.72,0.00041917,120]
[408838631,1774338712376,-1897.96,0.00041917,120]
[408838632,1774338712385,-500.0,0.00041917,120]
[408838633,1774338712395,-770.58,0.00041917,120]
[408838634,1774338712404,-1960.33,0.00041917,120]
[408838635,1774338712414,-500.0,0.00041917,120]
[408838636,1774338712423,-3056.27,0.00041917,120]
[408838637,1774338712433,-500.0,0.00041917,120]
[408838638,1774338712443,-500.0,0.00041917,120]
[408838639,1774338712454,-1228.99,0.00041917,120]
[408838640,1774338712463,-500.0,0.00041917,120]
[408838641,1774338712472,-680.28,0.00041917,120]
[408838642,1774338712482,-500.0,0.00041917,60]
[408838643,1774338712491,-500.0,0.00041917,120]
[408838644,1774338712501,-769.44,0.00041917,120]
[408838645,1774338712510,-500.0,0.00041917,120]
[408838646,1774338712520,-500.0,0.00041917,120]
[408838647,1774338712529,-500.0,0.00041917,120]
[408838648,1774338712539,-500.0,0.00041917,120]
[408838649,1774338712548,-500.0,0.00041917,120]
[408838650,1774338712562,-500.0,0.00041917,120]
[408838651,1774338712585,-855.78,0.00041917,120]
[408838652,1774338712601,-500.0,0.00041917,120]
[408838653,1774338712610,-500.0,0.00041917,120]
[408838654,1774338712621,-1780.32,0.00041917,120]
[408838655,1774338712631,-1078.9,0.00041917,120]
[408838656,1774338712640,-1099.3,0.00041917,120]
[408838657,1774338712649,-699.82,0.00041917,120]
[408838658,1774338712659,-500.0,0.00041917,120]
[408838659,1774338712668,-500.0,0.00041917,120]
[408838660,1774338712678,-759.17,0.00041917,120]
[408838661,1774338712687,-500.0,0.00041917,120]
[408838662,1774338712696,-500.0,0.00041917,120]
[408838663,1774338712706,-500.0,0.00041917,120]
[408838664,1774338712715,-500.0,0.00041917,120]
[408838665,1774338712724,-931.09,0.00041917,120]
[408838666,1774338712733,-815.17,0.00041917,120]
[408838667,1774338712743,-563.24179891,0.00041917,120]
[408838668,1774338712752,-500.0,0.00041917,120]
[408838669,1774338712761,-632.80650714,0.00041917,120]
[408838670,1774338712771,-656.8,0.00041917,120]
[408838671,1774338712780,-500.0,0.00041917,120]
[408838672,1774338712789,-500.0,0.00041917,120]
[408838673,1774338712798,-500.0,0.00041917,120]
[408838674,1774338712808,-500.0,0.00041917,120]
[408838675,1774338712817,-500.0,0.00041917,120]
[408838676,1774338712826,-671.25,0.00041917,120]
[408838677,1774338712835,-500.0,0.00041917,120]
[408838678,1774338712844,-614.51,0.00041917,120]
[408838679,1774338712853,-1323.85,0.00041917,7]
[408838680,1774338712864,-500.0,0.00041917,14]
[408838681,1774338712873,-500.0,0.00041917,120]
[408838682,1774338712883,-984.57,0.00041917,120]
[408838683,1774338712892,-633.56332801,0.00041917,120]
[408838684,1774338712902,-500.0,0.00041917,120]
[408838685,1774338712911,-500.0,0.00041917,120]
[408838686,1774338712921,-729.45,0.00041917,120]
[408838687,1774338712931,-500.0,0.00041917,120]
[408838688,1774338712940,-500.0,0.00041917,120]
[408838689,1774338712950,-500.0,0.00041917,120]
[408838690,1774338712960,-926.4,0.00041917,120]
[408838691,1774338712969,-1291.11,0.00041917,120]
[408838692,1774338712978,-560.4,0.00041917,120]
[408838693,1774338712988,-574.08614275,0.00041917,120]
[408838694,1774338712997,-617.21,0.00041917,120]
[408838695,1774338713007,-500.0,0.00041917,120]
[408838696,1774338713017,-1726.06,0.00041917,120]
[408838697,1774338713026,-500.0,0.00041917,120]
[408838698,1774338713035,-500.0,0.00041917,120]
[408838699,1774338713045,-500.0,0.00041917,120]
[408838700,1774338713054,-500.0,0.00041917,120]
[408838701,1774338713064,-500.0,0.00041917,120]
[408838702,1774338713073,-500.0,0.00041917,120]
[408838703,1774338713083,-500.0,0.00041917,120]
[408838704,1774338713093,-1356.13,0.00041917,120]
[408838705,1774338713104,-500.0,0.00041917,120]
[408838706,1774338713114,-801.87,0.00041917,120]
[408838707,1774338713124,-500.0,0.00041917,120]
[408838708,1774338713133,-500.0,0.00041917,120]
[408838709,1774338713143,-500.0,0.00041917,120]
[408838710,1774338713153,-500.0,0.00041917,120]
[408838711,1774338713163,-2922.62,0.00041917,60]
[408838712,1774338713172,-500.0,0.00041917,120]
[408838713,1774338713181,-821.12,0.00041917,120]
[408838714,1774338713191,-500.0,0.00041917,120]
[408838715,1774338713200,-665.38,0.00041917,120]
[408838716,1774338713209,-500.0,0.00041917,120]
[408838717,1774338713219,-866.85,0.00041917,120]
[408838718,1774338713228,-500.0,0.00041917,120]
[408838719,1774338713238,-500.0,0.00041917,120]
[408838720,1774338713249,-500.0,0.00041917,120]
[408838721,1774338713258,-500.0,0.00041917,120]
[408838722,1774338713268,-500.0,0.00041917,120]
[408838723,1774338713279,-500.0,0.00041917,120]
[408838724,1774338713289,-2859.83,0.00041917,120]
[408838725,1774338713303,-500.0,0.00041917,120]
[408838726,1774338713314,-500.0,0.00041917,120]
[408838727,1774338713325,-644.49,0.00041917,120]
[408838728,1774338713335,-500.0,0.00041917,120]
[408838729,1774338713345,-719.59,0.00041917,120]
[408838730,1774338713355,-4166.66,0.00041917,120]
[408838731,1774338713367,-500.0,0.00041917,120]
[408838732,1774338713380,-536.03684692,0.00041917,120]
[408838733,1774338713389,-679.57,0.00041917,120]
[408838734,1774338713399,-500.0,0.00041917,120]
[408838735,1774338713408,-500.0,0.00041917,120]
[408838736,1774338713420,-599.93,0.00041917,120]
[408838737,1774338713429,-500.0,0.00041917,120]
[408838738,1774338713442,-500.0,0.00041917,120]
[408838739,1774338713452,-500.0,0.00041917,120]
[408838740,1774338713461,-500.0,0.00041917,120]
[408838741,1774338713473,-1432.07,0.00041917,120]
[408838742,1774338713483,-500.0,0.00041917,120]
[408838743,1774338713494,-500.0,0.00041917,120]
[408838744,1774338713504,-500.0,0.00041917,120]
[408838745,1774338713515,-730.01,0.00041917,120]
[408838746,1774338713525,-500.0,0.00041917,120]
[408838747,1774338713535,-500.0,0.00041917,120]
[408838748,1774338713544,-500.0,0.00041917,120]
[408838749,1774338713554,-508.87,0.00041917,120]
[408838750,1774338713563,-883.47,0.00041917,120]
[408838751,1774338713572,-500.0,0.00041917,120]
[408838752,1774338713582,-500.0,0.00041917,120]
[408838753,1774338713592,-500.0,0.00041917,120]
[408838754,1774338713601,-500.0,0.00041917,120]
[408838755,1774338713610,-500.0,0.00041917,120]
[408838756,1774338713621,-605.99601368,0.00041917,120]
[408838757,1774338713632,-500.0,0.00041917,120]
[408838758,1774338713642,-500.0,0.00041917,120]
[408838759,1774338713652,-500.0,0.00041917,120]
[408838760,1774338713663,-759.73,0.00041917,120]
[408838761,1774338713672,-1171.93,0.00041917,120]
[408838762,1774338713682,-892.78,0.00041917,120]
[408838763,1774338713691,-749.74,0.00041917,120]
[408838764,1774338713700,-978.13,0.00041917,120]
[408838765,1774338714064,-500.0,0.00041917,120]
[408838766,1774338714074,-500.0,0.00041917,120]
[408838767,1774338714084,-674.49,0.00041917,120]
[408838768,1774338714093,-1973.42,0.00041917,120]
[408838769,1774338714102,-1355.12,0.00041917,120]
[408838770,1774338714111,-500.0,0.00041917,120]
[408838771,1774338714122,-500.0,0.00041917,120]
[408838772,1774338714131,-1044.01,0.00041917,120]
[408838773,1774338714140,-786.73,0.00041917,120]
[408838774,1774338714150,-500.0,0.00041917,120]
[408838775,1774338714159,-500.0,0.00041917,120]
[408838776,1774338714168,-500.0,0.00041917,120]
[408838777,1774338714177,-1476.03,0.00041917,120]
[408838778,1774338714186,-500.0,0.00041917,120]
[408838779,1774338714195,-647.98,0.00041917,120]
[408838780,1774338714204,-500.0,0.00041917,120]
[408838781,1774338714213,-947.33,0.00041917,120]
[408838782,1774338714223,-500.0,0.00041917,120]
[408838783,1774338714232,-590.04,0.00041917,120]
[408838784,1774338714241,-500.0,0.00041917,120]
[408838785,1774338714251,-924.76,0.00041917,120]
[408838786,1774338714260,-500.0,0.00041917,120]
[408838787,1774338714270,-500.0,0.00041917,120]
[408838788,1774338714280,-1633.92,0.00041917,120]
[408838789,1774338714289,-1295.04,0.00041917,120]
[408838790,1774338714298,-500.0,0.00041917,120]
[408838791,1774338714308,-500.0,0.00041917,120]
[408838792,1774338714318,-1441.35,0.00041917,60]
[408838793,1774338714327,-588.11,0.00041917,120]
[408838794,1774338714337,-1951.73,0.00041917,120]
[408838795,1774338714346,-500.0,0.00041917,120]
[408838796,1774338714356,-512.71236965,0.00041917,120]
[408838797,1774338714368,-500.0,0.00041917,120]
[408838798,1774338714378,-500.0,0.00041917,120]
[408838799,1774338714388,-2782.79,0.00041917,120]
[408838800,1774338714397,-605.44,0.00041917,120]
[408838801,1774338714407,-500.0,0.00041917,120]
[408838802,1774338714418,-467.66878589,0.00041917,120]
[408838803,1774338714428,-500.0,0.00041917,120]
[408838804,1774338714439,-894.69,0.00041917,120]
[408838805,1774338714452,-500.0,0.00041917,120]
[408838806,1774338714461,-500.0,0.00041917,120]
[408838807,1774338714471,-525.27,0.00041917,120]
[408838808,1774338714480,-1730.58,0.00041917,120]
[408838809,1774338714490,-517.76,0.00041917,120]
[408838810,1774338714500,-500.0,0.00041917,120]
[408838811,1774338714509,-500.0,0.00041917,120]
[408838812,1774338714519,-500.0,0.00041917,120]
[408838813,1774338714529,-500.0,0.00041917,120]
[408838814,1774338714539,-500.0,0.00041917,120]
[408838815,1774338714549,-1269.84,0.00041917,120]
[408838816,1774338714558,-221.41887461,0.00041917,120]
[408838817,1774338714567,-1536.15,0.00041917,120]
[408838818,1774338714577,-500.0,0.00041917,120]
[408838819,1774338714586,-1493.36,0.00041917,120]
[408838820,1774338714596,-500.0,0.00041917,120]
[408838821,1774338714605,-632.12,0.00041917,120]
[408838822,1774338714615,-600.11,0.00041917,120]
[408838823,1774338714624,-1551.97,0.00041917,120]
[408838824,1774338714634,-586.18681377,0.00041917,120]
[408838825,1774338714644,-500.0,0.00041917,120]
[408838826,1774338714654,-724.43,0.00041917,120]
[408838827,1774338714664,-2431.7,0.00041917,120]
[408838828,1774338714673,-500.0,0.00041917,120]
[408838829,1774338714683,-1186.56,0.00041917,120]
[408838830,1774338714693,-500.0,0.00041917,120]
[408838831,1774338714703,-581.12150767,0.00041917,120]
[408838832,1774338714712,-1747.14,0.00041917,120]
[408838833,1774338714729,-1632.69,0.00041917,120]
[408838834,1774338714744,-500.0,0.00041917,120]
[408838835,1774338714754,-500.0,0.00041917,120]
[408838836,1774338714764,-500.0,0.00041917,120]
[408838837,1774338714774,-500.0,0.00041917,120]
[408838838,1774338714784,-212.86100896,0.00041917,120]
[408838839,1774338714794,-517.15,0.00041917,120]
[408838840,1774338714804,-1598.01,0.00041917,120]
[408838841,1774338714815,-500.0,0.00041917,120]
[408838842,1774338714824,-500.0,0.00041917,120]
[408838843,1774338714834,-500.0,0.00041917,120]
[408838844,1774338714844,-1075.02,0.00041917,120]
[408838845,1774338714855,-1616.03,0.00041917,120]
[408838846,1774338714865,-264.4154709,0.00041917,120]
[408838847,1774338714875,-161.66579,0.00041917,120]
[408838848,1774338714885,-1428.85,0.00041917,120]
[408838849,1774338714895,-500.0,0.00041917,120]
[408838850,1774338714904,-500.0,0.00041917,120]
[408838851,1774338714915,-866.03,0.00041917,120]
[408838852,1774338714925,-665.63,0.00041917,120]
[408838853,1774338714935,-1926.05,0.00041917,120]
[408838854,1774338714945,-2687.41,0.00041917,120]
[408838855,1774338714957,-195.44338849,0.00041917,120]
[408838856,1774338714967,-728.07,0.00041917,120]
[408838857,1774338714977,-604.38,0.00041917,120]
[408838858,1774338714987,-638.16,0.00041917,120]
[408838859,1774338714997,-500.0,0.00041917,120]
[408838860,1774338715008,-500.0,0.00041917,120]
[408838861,1774338715019,-1493.48,0.00041917,30]
[408838862,1774338715030,-801.43,0.00041917,120]
[408838863,1774338715041,-752.4,0.00041917,120]
[408838864,1774338715051,-552.47,0.00041917,120]
[408838865,1774338715061,-500.0,0.00041917,120]
[408838866,1774338715070,-995.77,0.00041917,120]
[408838867,1774338715080,-500.0,0.00041917,120]
[408838868,1774338715096,-878.89,0.00041917,120]
[408838869,1774338715107,-2173.76,0.00041917,120]
[408838870,1774338715117,-500.0,0.00041917,30]
[408838871,1774338715128,-1298.61,0.00041917,120]
[408838872,1774338715138,-1791.61,0.00041917,120]
[408838873,1774338715148,-500.0,0.00041917,120]
[408838874,1774338715159,-500.0,0.00041917,120]
[408838875,1774338715169,-500.0,0.00041917,120]
[408838876,1774338715179,-1260.51,0.00041917,120]
[408838877,1774338715189,-500.0,0.00041917,120]
[408838878,1774338715200,-663.27,0.00041917,120]
[408838879,1774338715212,-1454.94,0.00041917,120]
[408838880,1774338715224,-500.0,0.00041917,60]
[408838881,1774338715236,-500.0,0.00041917,120]
[408838882,1774338715246,-500.0,0.00041917,120]
[408838883,1774338715258,-1601.87,0.00041917,120]
[408838884,1774338715269,-1108.88,0.00041917,120]
[408838885,1774338715279,-500.0,0.00041917,120]
[408838886,1774338715289,-1258.26,0.00041917,120]
[408838887,1774338715299,-590.8053026,0.00041917,120]
[408838888,1774338715309,-500.0,0.00041917,120]
[408838889,1774338715319,-631.57,0.00041917,120]
[408838890,1774338715330,-1791.18,0.00041917,120]
[408838891,1774338715340,-500.0,0.00041917,120]
[408838892,1774338715351,-514.08,0.00041917,120]
[408838893,1774338715363,-585.76,0.00041917,120]
[408838894,1774338715377,-1447.52,0.00041917,120]
[408838895,1774338715388,-500.0,0.00041917,120]
[408838896,1774338715398,-500.0,0.00041917,120]
[408838897,1774338715409,-500.0,0.00041917,120]
[408838898,1774338715419,-594.22229958,0.00041917,120]
[408838899,1774338715430,-500.0,0.00041917,120]
[408838900,1774338715440,-500.0,0.00041917,120]
[408838901,1774338715458,-634.53,0.00041917,120]
[408838902,1774338715469,-500.0,0.00041917,120]
[408838903,1774338715480,-500.0,0.00041917,120]
[408838904,1774338715491,-500.0,0.00041917,120]
[408838905,1774338715502,-500.0,0.00041917,120]
[408838906,1774338715514,-514.43,0.00041917,120]
[408838907,1774338715524,-500.0,0.00041917,120]
[408838908,1774338715536,-500.0,0.00041917,120]
[408838909,1774338715547,-1530.3,0.00041917,120]
[408838910,1774338715557,-1437.77,0.00041917,120]
[408838911,1774338715567,-500.0,0.00041917,120]
[408838912,1774338715578,-735.64,0.00041917,120]
[408838913,1774338715589,-392.20181076,0.00041917,120]
[408838914,1774338715599,-798.73,0.00041917,120]
[408838915,1774338715609,-500.0,0.00041917,120]
[408838916,1774338715619,-500.0,0.00041917,120]
[408838917,1774338715630,-2864.08,0.00041917,120]
[408838918,1774338715640,-534.31,0.00041917,120]
[408838919,1774338715651,-500.0,0.00041917,120]
[408838920,1774338715662,-800.61,0.00041917,120]
[408838921,1774338715672,-500.0,0.00041917,120]
[408838922,1774338715682,-500.0,0.00041917,120]
[408838923,1774338715692,-500.0,0.00041917,120]
[408838924,1774338715702,-500.0,0.00041917,120]
[408838925,1774338715714,-1519.14,0.00041917,120]
[408838926,1774338715724,-500.0,0.00041917,12]
[408838927,1774338715735,-500.0,0.00041917,120]
[408838928,1774338715746,-500.0,0.00041917,120]
[408838929,1774338715756,-547.19,0.00041917,120]
[408838930,1774338715767,-971.22,0.00041917,120]
[408838931,1774338715777,-579.61,0.00041917,120]
[408838932,1774338715787,-500.0,0.00041917,120]
[408838933,1774338715796,-2175.73,0.00041917,120]
[408838934,1774338715807,-1404.43,0.00041917,120]
[408838935,1774338715820,-651.63,0.00041917,120]
[408838936,1774338715831,-500.0,0.00041917,120]
[408838937,1774338715842,-500.0,0.00041917,120]
[408838938,1774338715851,-769.19,0.00041917,120]
[408838939,1774338715861,-1046.52,0.00041917,120]
[408838940,1774338715873,-500.0,0.00041917,120]
[408838941,1774338715883,-666.77,0.00041917,120]
[408838942,1774338715893,-500.0,0.00041917,120]
[408838943,1774338715903,-500.0,0.00041917,120]
[408838944,1774338715913,-613.47,0.00041917,120]
[408838945,1774338715922,-500.0,0.00041917,120]
[408838946,1774338715933,-500.0,0.00041917,120]
[408838947,1774338715944,-411.99966294,0.00041917,120]
[408838948,1774338715955,-500.0,0.00041917,120]
[408838949,1774338715966,-500.0,0.00041917,120]
[408838950,1774338715975,-664.14,0.00041917,120]
[408838951,1774338715986,-500.0,0.00041917,120]
[408838952,1774338715996,-500.55,0.00041917,120]
[408838953,1774338716006,-1409.42,0.00041917,120]
[408838954,1774338716020,-500.0,0.00041917,120]
[408838955,1774338716030,-1958.04,0.00041917,120]
[408838956,1774338716040,-500.0,0.00041917,120]
[408838957,1774338716051,-500.0,0.00041917,120]
[408838958,1774338716061,-500.0,0.00041917,120]
[408838959,1774338716071,-500.0,0.00041917,120]
[408838960,1774338716082,-845.98,0.00041917,120]
[408838961,1774338716092,-788.97,0.00041917,120]
[408838962,1774338716103,-321.93609389,0.00041917,120]
[408838963,1774338716114,-500.0,0.00041917,120]
[408838964,1774338716125,-2271.51,0.00041917,120]
[408838965,1774338716135,-979.08,0.00041917,120]
[408838966,1774338716145,-798.9,0.00041917,120]
[408838967,1774338716155,-785.73,0.00041917,120]
[408838968,1774338716165,-500.0,0.00041917,120]
[408838969,1774338716175,-1319.48,0.00041917,120]
[408838970,1774338716185,-898.9,0.00041917,120]
[408838971,1774338716196,-1026.81,0.00041917,120]
[408838972,1774338716209,-1571.69,0.00041917,120]
[408838973,1774338716220,-896.49,0.00041917,2]
[408838974,1774338716230,-591.09,0.00041917,120]
[408838975,1774338716240,-500.0,0.00041917,120]
[408838976,1774338716250,-951.54,0.00041917,120]
[408838977,1774338716260,-500.0,0.00041917,120]
[408838978,1774338716270,-500.0,0.00041917,120]
[408838979,1774338716279,-1576.67,0.00041917,120]
[408838980,1774338716289,-500.0,0.00041917,120]
[408838981,1774338716298,-500.0,0.00041917,120]
[408838982,1774338716308,-500.0,0.00041917,120]
[408838983,1774338716318,-533.43,0.00041917,120]
[408838984,1774338716330,-500.0,0.00041917,120]
[408838985,1774338716340,-1797.77,0.00041917,120]
[408838986,1774338716352,-641.68,0.00041917,30]
[408838987,1774338716375,-908.05,0.00041917,120]
[408838988,1774338716388,-978.03,0.00041917,120]
[408838989,1774338716398,-500.0,0.00041917,120]
[408838990,1774338716409,-500.0,0.00041917,120]
[408838991,1774338716422,-231.69773588,0.00041917,60]
[408838992,1774338716433,-500.0,0.00041917,120]